[Event "EYCC Open-U14 2019"]
[Site "Bratislava"]
[Date "2019.08.07"]
[Round "6.30"]
[White "Hak, David"]
[Black "Kalosha, Zhiulien Oleksii"]
[Result "1/2-1/2"]
[ECO "C45"]
[WhiteElo "2012"]
[BlackElo "1936"]
[Annotator "NA"]
[PlyCount "128"]
[EventDate "2019.08.02"]
[EventType "swiss"]
[EventCountry "SVK"]
[SourceTitle "playchess.com"]
[Source "ChessBase"]
[SourceQuality "1"]
[TimeControl "40/5400+30:1800+30"]

1. e4 {[%emt 0:00:00]} e5 {[%emt 0:00:00]} 2. Nf3 {[%emt 0:00:00]} Nc6 {[%emt 0:00:00]} 3. d4 {[%emt 0:00:00]} exd4 {[%emt 0:00:00]} 4. Nxd4 {[%emt 0:00:00]} Bc5 {[%emt 0:00:10]} 5. Nb3 {[%emt 0:00:00]} Bb6 {[%emt 0:00:12]} 6. a4 {[%emt 0:00:09]} a6 {[%emt 0:00:13]} 7. Nc3 {[%emt 0:00:20]} d6 {[%emt 0:00:32]} 8. Bd3 {[%emt 0:03:34]} Nge7 {[%emt 0:00:38]} 9. Qe2 {[%emt 0:10:59]} Be6 {[%emt 0:02:39]} 10. Nd5 {[%emt 0:07:56]} Bxd5 {[%emt 0:04:37]} 11. exd5 {[%emt 0:00:07]} Ne5 {[%emt 0:00:10]} 12. c4 {[%emt 0:07:08]} Nxd3+ {[%emt 0:02:14]} 13. Qxd3 {[%emt 0:00:07]} O-O {[%emt 0:01:09]} 14. O-O {[%emt 0:02:00]} Ng6 {[%emt 0:01:24]} 15. Nd2 {[%emt 0:14:55]} Ne5 {[%emt 0:03:22]} 16. Qg3 {[%emt 0:06:21]} Qd7 {[%emt 0:07:30]} 17. b3 {[%emt 0:08:18]} Bd4 {[%emt 0:02:29]} 18. Rb1 {[%emt 0:05:05]} Qf5 {[%emt 0:00:39]} 19. Bb2 {[%emt 0:05:29]} Bxb2 {[%emt 0:00:46]} 20. Rxb2 {[%emt 0:00:01]} Nd3 {[%emt 0:00:37]} 21. Rbb1 {[%emt 0:00:39]} Rae8 {[%emt 0:01:11]} 22. Nf3 {[%emt 0:07:37]} Re7 {[%emt 0:05:51]} 23. Rbd1 {[%emt 0:09:38]} Nf4 {[%emt 0:03:57]} 24. Nd4 {[%emt 0:01:25]} Qe4 {[%emt 0:01:22]} 25. f3 {[%emt 0:06:01]} Qxd4+ {[%emt 0:01:21]} 26. Rxd4 {[%emt 0:00:04]} Ne2+ {[%emt 0:00:05]} 27. Kf2 {[%emt 0:00:10]} Nxg3 {[%emt 0:00:06]} 28. hxg3 {[%emt 0:00:48]} Rfe8 {[%emt 0:00:09]} 29. Rd2 {[%emt 0:00:37]} Re3 {[%emt 0:03:32]} 30. Rb1 {[%emt 0:00:56]} Rc3 {[%emt 0:05:39]} 31. Rbb2 {[%emt 0:01:06]} f5 {[%emt 0:09:20]} 32. Re2 {[%emt 0:00:59]} Rxe2+ {[%emt 0:02:09]} 33. Kxe2 {[%emt 0:00:02]} Rc1 {[%emt 0:00:13]} 34. Kd2 {[%emt 0:01:23]} Rg1 {[%emt 0:00:37]} 35. Kc3 {[%emt 0:00:51]} Kf7 {[%emt 0:00:38]} 36. b4 {[%emt 0:01:38]} Ra1 {[%emt 0:01:09]} 37. Kb3 {[%emt 0:01:14]} g5 {[%emt 0:01:18]} 38. b5 {[%emt 0:00:36]} Kf6 {[%emt 0:22:12]} 39. b6 {[%emt 0:00:29]} cxb6 {[%emt 0:01:01]} 40. Re2 {[%emt 0:00:00]} Rb1+ {[%emt 0:00:00]} 41. Kc3 {[%emt 0:07:34]} Rc1+ {[%emt 0:01:00]} 42. Kd3 {[%emt 0:02:29]} Rd1+ {[%emt 0:00:09]} 43. Kc2 {[%emt 0:03:38]} Rg1 {[%emt 0:00:52]} 44. f4 {[%emt 0:07:48]} g4 {[%emt 0:04:44]} 45. Re6+ {[%emt 0:04:33]} Kf7 {[%emt 0:00:15]} 46. Rxd6 {[%emt 0:02:53]} Rxg2+ {[%emt 0:00:08]} 47. Kd1 {[%emt 0:00:15]} Rxg3 {[%emt 0:00:38]} 48. Rxb6 {[%emt 0:00:23]} Rf3 {[%emt 0:00:52]} 49. Rxb7+ {[%emt 0:00:15]} Kf6 {[%emt 0:02:42]} 50. Rb6+ {[%emt 0:02:53]} Kf7 {[%emt 0:00:35]} 51. Rb7+ {[%emt 0:00:40]} Ke8 {[%emt 0:04:51]} 52. Rb8+ {[%emt 0:01:56]} Kd7 {[%emt 0:00:36]} 53. Rb7+ {[%emt 0:00:35]} Kc8 {[%emt 0:00:28]} 54. Rxh7 {[%emt 0:00:15]} Rxf4 {[%emt 0:00:15]} 55. Rh5 {[%emt 0:01:21]} Kd7 {[%emt 0:04:25]} 56. Ke2 {[%emt 0:00:34]} g3 {[%emt 0:07:34]} 57. Rg5 {[%emt 0:00:45]} Rf2+ {[%emt 0:02:00]} 58. Ke1 {[%emt 0:00:12]} f4 {[%emt 0:00:10]} 59. c5 {[%emt 0:00:41]} Rc2 {[%emt 0:01:03]} 60. Rg7+ {[%emt 0:00:09]} Kd8 {[%emt 0:00:36]} 61. Rg8+ {[%emt 0:00:11]} Ke7 {[%emt 0:04:17]} 62. d6+ {[%emt 0:00:12]} Kd7 {[%emt 0:02:08]} 63. Rg7+ {[%emt 0:00:15]} Kd8 {[%emt 0:01:12]} 64. Rg8+ {[%emt 0:00:18]} Kd7 {[%emt 0:00:06]} 1/2-1/2

[Event "EYCC Open-U14 2019"]
[Site "Bratislava"]
[Date "2019.08.07"]
[Round "6.31"]
[White "Talibov, Shiroghlan"]
[Black "Cappelletto, Joshuaede"]
[Result "1-0"]
[ECO "A35"]
[WhiteElo "1882"]
[BlackElo "2138"]
[Annotator "NA"]
[PlyCount "87"]
[EventDate "2019.08.02"]
[EventType "swiss"]
[EventCountry "SVK"]
[SourceTitle "playchess.com"]
[Source "ChessBase"]
[SourceQuality "1"]
[TimeControl "40/5400+30:1800+30"]

1. c4 {[%emt 0:00:00]} c5 {[%emt 0:00:00]} 2. Nc3 {[%emt 0:00:00]} Nc6 {[%emt 0:00:00]} 3. Nf3 {[%emt 0:00:00]} g6 {[%emt 0:00:00]} 4. e3 {[%emt 0:00:19]} Nf6 {[%emt 0:06:43]} 5. d4 cxd4 {[%emt 0:05:42]} 6. exd4 {[%emt 0:01:37]} Bg7 {[%emt 0:00:19]} 7. d5 {[%emt 0:02:41]} Nb8 {[%emt 0:00:08]} 8. Be2 {[%emt 0:01:33]} d6 {[%emt 0:00:18]} 9. O-O {[%emt 0:00:17]} O-O {[%emt 0:00:06]} 10. h3 {[%emt 0:00:30]} Nbd7 {[%emt 0:04:18]} 11. Be3 {[%emt 0:01:42]} a5 {[%emt 0:08:19]} 12. Re1 {[%emt 0:02:02]} Nc5 {[%emt 0:01:56]} 13. Bd4 {[%emt 0:01:45]} Bd7 {[%emt 0:01:45]} 14. Bf1 {[%emt 0:00:52]} Re8 {[%emt 0:01:24]} 15. Ne5 {[%emt 0:07:56]} Qc8 {[%emt 0:15:19]} 16. Nxd7 {[%emt 0:04:22]} Qxd7 {[%emt 0:02:13]} 17. Qf3 {[%emt 0:01:21]} Rac8 {[%emt 0:04:52]} 18. Rad1 {[%emt 0:03:36]} Qd8 {[%emt 0:05:51]} 19. b3 {[%emt 0:08:38]} Nfd7 {[%emt 0:02:06]} 20. Bxg7 {[%emt 0:03:30]} Kxg7 {[%emt 0:00:11]} 21. Ne4 {[%emt 0:01:07]} Nxe4 {[%emt 0:04:25]} 22. Rxe4 {[%emt 0:04:04]} Nf6 {[%emt 0:04:06]} 23. Re3 {[%emt 0:04:36]} Qb6 {[%emt 0:04:06]} 24. Rde1 {[%emt 0:01:08]} Rc7 {[%emt 0:00:13]} 25. Bd3 {[%emt 0:01:41]} Qd4 {[%emt 0:02:53]} 26. a4 {[%emt 0:03:33]} Nd7 {[%emt 0:06:52]} 27. Bb1 {[%emt 0:03:36]} Nc5 {[%emt 0:02:25]} 28. Qe2 {[%emt 0:03:53]} Na6 {[%emt 0:04:58]} 29. Re4 {[%emt 0:02:35]} Qc3 {[%emt 0:01:16]} 30. Re3 {[%emt 0:00:49]} Qb4 {[%emt 0:00:10]} 31. f4 {[%emt 0:00:44]} Nc5 {[%emt 0:01:04]} 32. f5 {[%emt 0:01:21]} Qb6 {[%emt 0:08:43]} 33. Kh1 {[%emt 0:01:26]} e5 {[%emt 0:03:09]} 34. dxe6 {[%emt 0:03:48]} fxe6 {[%emt 0:00:06]} 35. fxe6 {[%emt 0:00:20]} Rce7 {[%emt 0:00:05]} 36. Qb2+ {[%emt 0:00:26]} Kg8 {[%emt 0:00:07]} 37. Qf6 {[%emt 0:00:38]} Qd8 {[%emt 0:01:17]} 38. Kh2 {[%emt 0:00:58]} Qc8 {[%emt 0:00:22]} 39. Bf5 {[%emt 0:01:31]} Qc7 {[%emt 0:00:31]} 40. Bxg6 {[%emt 0:00:00]} hxg6 41. Qxg6+ {[%emt 0:01:24]} Kh8 {[%emt 0:01:01]} 42. Qh5+ {[%emt 0:00:07]} Kg7 {[%emt 0:00:46]} 43. Rg3+ {[%emt 0:00:07]} Kf8 {[%emt 0:00:25]} 44. Qh8# {[%emt 0:00:06]} 1-0

[Event "EYCC Open-U14 2019"]
[Site "Bratislava"]
[Date "2019.08.07"]
[Round "6.32"]
[White "Fardet, Elouan"]
[Black "Andrijashkin, Deniss"]
[Result "0-1"]
[ECO "C70"]
[WhiteElo "2047"]
[BlackElo "1862"]
[Annotator "NA"]
[PlyCount "100"]
[EventDate "2019.08.02"]
[EventType "swiss"]
[EventCountry "SVK"]
[SourceTitle "playchess.com"]
[Source "ChessBase"]
[SourceQuality "1"]
[TimeControl "40/5400+30:1800+30"]

1. e4 {[%emt 0:00:00]} e5 {[%emt 0:00:00]} 2. Nf3 {[%emt 0:00:00]} Nc6 {[%emt 0:00:00]} 3. Bb5 {[%emt 0:00:00]} a6 {[%emt 0:00:05]} 4. Ba4 {[%emt 0:00:00]} g6 {[%emt 0:00:06]} 5. c3 {[%emt 0:00:01]} Bg7 {[%emt 0:05:41]} 6. d4 {[%emt 0:00:14]} exd4 {[%emt 0:01:57]} 7. cxd4 {[%emt 0:00:06]} Nge7 {[%emt 0:03:29]} 8. d5 {[%emt 0:01:07]} Na5 {[%emt 0:00:15]} 9. Bd2 {[%emt 0:00:15]} Nc4 {[%emt 0:03:58]} 10. Bc3 {[%emt 0:01:16]} Bxc3+ {[%emt 0:04:24]} 11. Nxc3 {[%emt 0:00:10]} b5 {[%emt 0:00:52]} 12. Bc2 {[%emt 0:01:12]} d6 {[%emt 0:04:28]} 13. b3 {[%emt 0:07:50]} Ne5 {[%emt 0:00:52]} 14. Nd4 {[%emt 0:04:18]} O-O {[%emt 0:06:15]} 15. O-O {[%emt 0:02:53]} f5 {[%emt 0:04:31]} 16. exf5 {[%emt 0:10:22]} Nxf5 {[%emt 0:00:18]} 17. Nxf5 {[%emt 0:01:26]} Bxf5 {[%emt 0:00:35]} 18. Bxf5 {[%emt 0:00:28]} Rxf5 {[%emt 0:04:00]} 19. Rc1 {[%emt 0:04:16]} Qh4 {[%emt 0:02:56]} 20. f3 {[%emt 0:12:13]} Raf8 {[%emt 0:02:30]} 21. Qe1 {[%emt 0:04:44]} Qh6 {[%emt 0:15:11]} 22. Rc2 {[%emt 0:09:46]} Ng4 {[%emt 0:07:50]} 23. fxg4 {[%emt 0:07:08]} Rxf1+ {[%emt 0:00:05]} 24. Qxf1 {[%emt 0:00:06]} Rxf1+ {[%emt 0:00:04]} 25. Kxf1 {[%emt 0:00:07]} Qf4+ {[%emt 0:00:37]} 26. Ke1 {[%emt 0:01:29]} Qxg4 {[%emt 0:02:39]} 27. Rd2 {[%emt 0:01:39]} b4 {[%emt 0:00:44]} 28. Na4 {[%emt 0:00:09]} Qe4+ {[%emt 0:01:43]} 29. Kd1 {[%emt 0:00:21]} Qb1+ {[%emt 0:01:03]} 30. Ke2 {[%emt 0:00:07]} Qg1 {[%emt 0:00:10]} 31. Nb2 {[%emt 0:00:36]} Qxg2+ {[%emt 0:00:14]} 32. Kd1 {[%emt 0:00:06]} Qf3+ {[%emt 0:00:34]} 33. Kc1 {[%emt 0:00:11]} h5 {[%emt 0:00:22]} 34. Nd1 {[%emt 0:01:27]} g5 {[%emt 0:00:39]} 35. Nf2 {[%emt 0:00:28]} g4 {[%emt 0:00:20]} 36. Nd3 {[%emt 0:00:40]} h4 {[%emt 0:00:47]} 37. Kc2 {[%emt 0:00:59]} g3 {[%emt 0:01:03]} 38. hxg3 {[%emt 0:00:05]} Qxg3 {[%emt 0:00:33]} 39. Nxb4 {[%emt 0:01:03]} h3 {[%emt 0:00:38]} 40. Nd3 {[%emt 0:00:00]} h2 {[%emt 0:00:00]} 41. Nf2 {[%emt 0:00:07]} Qxf2 {[%emt 0:01:43]} 42. Rxf2 {[%emt 0:00:06]} h1=Q {[%emt 0:00:05]} 43. Rd2 {[%emt 0:00:06]} Qe4+ {[%emt 0:00:05]} 44. Kb2 {[%emt 0:00:04]} Kf7 {[%emt 0:00:58]} 45. Kc1 Kf6 {[%emt 0:00:37]} 46. Kd1 {[%emt 0:00:12]} Qb1+ {[%emt 0:00:20]} 47. Ke2 {[%emt 0:00:04]} Ke5 {[%emt 0:00:11]} 48. Kf2 {[%emt 0:00:11]} Ke4 {[%emt 0:01:12]} 49. Ke2 {[%emt 0:00:08]} Qg1 {[%emt 0:00:57]} 50. b4 {[%emt 0:00:22]} Qb1 {[%emt 0:00:21]} 0-1

[Event "EYCC Open-U14 2019"]
[Site "Bratislava"]
[Date "2019.08.07"]
[Round "6.33"]
[White "Kristoferitsch, Daniel"]
[Black "Backiel, Hubert"]
[Result "1-0"]
[ECO "B33"]
[WhiteElo "2108"]
[BlackElo "1748"]
[Annotator "NA"]
[PlyCount "75"]
[EventDate "2019.08.02"]
[EventType "swiss"]
[EventCountry "SVK"]
[SourceTitle "playchess.com"]
[Source "ChessBase"]
[SourceQuality "1"]
[TimeControl "40/5400+30:1800+30"]

1. e4 {[%emt 0:00:00]} c5 {[%emt 0:00:18]} 2. Nf3 {[%emt 0:00:00]} Nc6 {[%emt 0:00:08]} 3. d4 {[%emt 0:00:00]} cxd4 {[%emt 0:00:10]} 4. Nxd4 {[%emt 0:00:00]} Nf6 {[%emt 0:00:14]} 5. Nc3 {[%emt 0:00:00]} e5 {[%emt 0:00:07]} 6. Ndb5 {[%emt 0:00:02]} d6 {[%emt 0:00:07]} 7. Bg5 {[%emt 0:00:09]} a6 {[%emt 0:00:10]} 8. Na3 {[%emt 0:00:06]} b5 {[%emt 0:00:20]} 9. Nd5 {[%emt 0:00:15]} Be7 {[%emt 0:00:26]} 10. Bxf6 {[%emt 0:00:07]} Bxf6 {[%emt 0:01:13]} 11. c3 {[%emt 0:00:10]} Bg5 {[%emt 0:01:19]} 12. Nc2 {[%emt 0:00:10]} O-O {[%emt 0:01:20]} 13. a4 {[%emt 0:00:14]} Rb8 {[%emt 0:03:46]} 14. axb5 {[%emt 0:19:41]} axb5 {[%emt 0:02:03]} 15. Bd3 {[%emt 0:00:32]} g6 {[%emt 0:10:13]} 16. Qe2 {[%emt 0:14:22]} Be6 {[%emt 0:08:44]} 17. Bxb5 {[%emt 0:06:38]} Bxd5 {[%emt 0:02:20]} 18. exd5 {[%emt 0:00:07]} Ne7 {[%emt 0:00:26]} 19. c4 {[%emt 0:04:12]} f5 {[%emt 0:02:38]} 20. O-O {[%emt 0:02:11]} f4 {[%emt 0:02:44]} 21. Qe4 {[%emt 0:04:04]} Nf5 {[%emt 0:28:40]} 22. b4 {[%emt 0:13:06]} Qc8 {[%emt 0:14:11]} 23. Ra7 {[%emt 0:03:38]} Rxb5 {[%emt 0:13:49]} 24. cxb5 {[%emt 0:01:00]} f3 {[%emt 0:00:14]} 25. Kh1 {[%emt 0:20:48]} fxg2+ {[%emt 0:02:14]} 26. Qxg2 {[%emt 0:00:12]} Bf4 {[%emt 0:03:41]} 27. Qh3 {[%emt 0:04:24]} h6 {[%emt 0:01:21]} 28. Qd3 {[%emt 0:05:25]} Qb8 {[%emt 0:00:32]} 29. Ra3 {[%emt 0:00:35]} Re8 {[%emt 0:00:27]} 30. Rg1 {[%emt 0:00:16]} Kh7 {[%emt 0:00:24]} 31. Ne3 {[%emt 0:00:27]} e4 {[%emt 0:00:19]} 32. Qe2 {[%emt 0:00:20]} Bxe3 {[%emt 0:00:42]} 33. fxe3 {[%emt 0:00:12]} Re7 {[%emt 0:00:24]} 34. Qg4 {[%emt 0:00:15]} Qe8 {[%emt 0:00:32]} 35. b6 {[%emt 0:00:27]} Qf7 {[%emt 0:00:24]} 36. Ra7 {[%emt 0:00:54]} Kh8 {[%emt 0:00:49]} 37. Qxg6 {[%emt 0:00:52]} Qxd5 {[%emt 0:00:29]} 38. Rxe7 {[%emt 0:00:36]} 1-0

[Event "EYCC Open-U14 2019"]
[Site "Bratislava"]
[Date "2019.08.07"]
[Round "6.34"]
[White "Sobek, Michal"]
[Black "Krivenko, Dion"]
[Result "1-0"]
[ECO "B52"]
[WhiteElo "2101"]
[BlackElo "1700"]
[Annotator "NA"]
[PlyCount "101"]
[EventDate "2019.08.02"]
[EventType "swiss"]
[EventCountry "SVK"]
[SourceTitle "playchess.com"]
[Source "ChessBase"]
[SourceQuality "1"]
[TimeControl "40/5400+30:1800+30"]

1. e4 {[%emt 0:00:00]} c5 {[%emt 0:00:00]} 2. Nf3 {[%emt 0:00:00]} d6 {[%emt 0:00:00]} 3. Bb5+ {[%emt 0:00:00]} Bd7 {[%emt 0:00:21]} 4. Bxd7+ {[%emt 0:00:02]} Nxd7 {[%emt 0:00:42]} 5. O-O {[%emt 0:00:05]} Ngf6 {[%emt 0:01:01]} 6. Re1 {[%emt 0:01:05]} g6 {[%emt 0:01:36]} 7. c3 {[%emt 0:00:11]} Bg7 {[%emt 0:00:49]} 8. d4 {[%emt 0:00:15]} O-O {[%emt 0:04:16]} 9. e5 {[%emt 0:04:55]} Ne8 {[%emt 0:02:38]} 10. Bg5 {[%emt 0:03:03]} dxe5 {[%emt 0:08:05]} 11. dxe5 {[%emt 0:09:31]} Nc7 {[%emt 0:05:27]} 12. Na3 {[%emt 0:03:53]} Ne6 {[%emt 0:02:53]} 13. Bh4 {[%emt 0:13:23]} h6 {[%emt 0:05:18]} 14. Nc4 {[%emt 0:08:24]} g5 {[%emt 0:08:28]} 15. Bg3 {[%emt 0:00:05]} Nb6 {[%emt 0:02:13]} 16. Ne3 {[%emt 0:05:29]} Qxd1 {[%emt 0:02:06]} 17. Raxd1 {[%emt 0:00:04]} Rfd8 {[%emt 0:02:12]} 18. h4 {[%emt 0:02:37]} Kf8 {[%emt 0:06:34]} 19. hxg5 {[%emt 0:03:39]} hxg5 {[%emt 0:00:47]} 20. b3 {[%emt 0:00:18]} a5 {[%emt 0:05:11]} 21. c4 {[%emt 0:07:45]} Bh6 {[%emt 0:04:04]} 22. Nf5 {[%emt 0:06:06]} Bg7 {[%emt 0:00:28]} 23. Ne3 {[%emt 0:00:32]} Bh6 {[%emt 0:00:29]} 24. Nd5 {[%emt 0:05:42]} Nxd5 {[%emt 0:06:42]} 25. cxd5 {[%emt 0:00:04]} Nc7 {[%emt 0:00:17]} 26. d6 {[%emt 0:03:09]} Ne6 {[%emt 0:02:23]} 27. Nd2 {[%emt 0:02:57]} b5 {[%emt 0:03:38]} 28. Ne4 {[%emt 0:00:36]} a4 {[%emt 0:02:28]} 29. f4 {[%emt 0:04:13]} exd6 {[%emt 0:02:32]} 30. fxg5 {[%emt 0:00:53]} Nxg5 {[%emt 0:04:00]} 31. exd6 {[%emt 0:07:32]} Nxe4 {[%emt 0:02:07]} 32. Rxe4 {[%emt 0:00:08]} axb3 {[%emt 0:00:47]} 33. axb3 {[%emt 0:00:27]} Bg7 {[%emt 0:11:02]} 34. Rd5 {[%emt 0:04:19]} Bd4+ {[%emt 0:00:52]} 35. Kh2 {[%emt 0:00:25]} Rd7 {[%emt 0:03:04]} 36. Rg4 {[%emt 0:00:50]} f6 {[%emt 0:00:51]} 37. Rh4 {[%emt 0:00:50]} Raa7 {[%emt 0:01:05]} 38. b4 {[%emt 0:00:47]} Rh7 {[%emt 0:01:01]} 39. bxc5 {[%emt 0:00:18]} Rxh4+ {[%emt 0:00:01]} 40. Bxh4 {[%emt 0:00:00]} Be5+ {[%emt 0:00:00]} 41. g3 {[%emt 0:00:57]} Ke8 {[%emt 0:08:03]} 42. c6 {[%emt 0:01:16]} Ra4 43. d7+ {[%emt 0:01:16]} Kd8 {[%emt 0:07:45]} 44. Kh3 {[%emt 0:00:49]} Rc4 {[%emt 0:02:40]} 45. Rxe5 {[%emt 0:00:55]} Rxc6 {[%emt 0:00:14]} 46. Rxb5 {[%emt 0:00:06]} Kxd7 {[%emt 0:00:15]} 47. Rf5 {[%emt 0:00:10]} Ke7 {[%emt 0:00:52]} 48. Rxf6 {[%emt 0:00:06]} Rxf6 {[%emt 0:00:04]} 49. Bxf6+ {[%emt 0:00:04]} Kxf6 {[%emt 0:00:06]} 50. Kh4 {[%emt 0:00:03]} Kg6 {[%emt 0:00:09]} 51. Kg4 {[%emt 0:00:04]} 1-0

[Event "EYCC Open-U14 2019"]
[Site "Bratislava"]
[Date "2019.08.07"]
[Round "6.35"]
[White "Papidakis, Georgios"]
[Black "Luczak, Filip"]
[Result "0-1"]
[ECO "A45"]
[WhiteElo "1888"]
[BlackElo "2144"]
[Annotator "NA"]
[PlyCount "60"]
[EventDate "2019.08.02"]
[EventType "swiss"]
[EventCountry "SVK"]
[SourceTitle "playchess.com"]
[Source "ChessBase"]
[SourceQuality "1"]
[TimeControl "40/5400+30:1800+30"]

1. d4 {[%emt 0:00:00]} Nf6 {[%emt 0:00:00]} 2. Bf4 {[%emt 0:00:00]} b6 {[%emt 0:00:00]} 3. e3 {[%emt 0:01:33]} Bb7 {[%emt 0:01:57]} 4. Nf3 {[%emt 0:00:41]} g6 {[%emt 0:00:11]} 5. Bd3 {[%emt 0:00:51]} Bg7 {[%emt 0:00:47]} 6. h3 {[%emt 0:04:44]} d6 {[%emt 0:00:32]} 7. a4 {[%emt 0:05:12]} a5 {[%emt 0:04:38]} 8. Nbd2 {[%emt 0:02:19]} Nbd7 {[%emt 0:01:47]} 9. Bh2 {[%emt 0:05:58]} O-O {[%emt 0:02:15]} 10. O-O {[%emt 0:01:42]} Re8 {[%emt 0:02:58]} 11. Nc4 {[%emt 0:11:52]} Ne4 {[%emt 0:09:59]} 12. c3 {[%emt 0:05:57]} e5 {[%emt 0:03:27]} 13. Qc2 {[%emt 0:17:12]} Ng5 {[%emt 0:14:18]} 14. Nxg5 {[%emt 0:04:59]} Qxg5 {[%emt 0:00:15]} 15. f4 {[%emt 0:08:51]} exf4 {[%emt 0:02:24]} 16. exf4 {[%emt 0:01:49]} Qd5 {[%emt 0:03:57]} 17. Qf2 {[%emt 0:05:39]} Nc5 {[%emt 0:07:09]} 18. Be2 {[%emt 0:04:31]} Ne4 {[%emt 0:08:05]} 19. Qf3 {[%emt 0:00:04]} f5 {[%emt 0:02:17]} 20. Rfe1 {[%emt 0:01:37]} Qf7 {[%emt 0:02:30]} 21. Nd2 {[%emt 0:04:22]} c5 {[%emt 0:08:43]} 22. Nxe4 {[%emt 0:02:53]} Bxe4 {[%emt 0:03:27]} 23. Qf2 {[%emt 0:00:20]} cxd4 {[%emt 0:00:04]} 24. cxd4 {[%emt 0:04:14]} Rec8 {[%emt 0:03:46]} 25. Qe3 {[%emt 0:02:45]} Qd5 {[%emt 0:02:48]} 26. Rad1 {[%emt 0:00:42]} Rc2 {[%emt 0:03:09]} 27. Bf3 {[%emt 0:00:49]} Bxf3 {[%emt 0:01:05]} 28. gxf3 {[%emt 0:00:16]} Rxb2 {[%emt 0:01:11]} 29. Rd3 {[%emt 0:01:46]} Rb4 {[%emt 0:01:43]} 30. Kh1 {[%emt 0:00:45]} Rxa4 {[%emt 0:01:38]} 0-1

[Event "EYCC Open-U14 2019"]
[Site "Bratislava"]
[Date "2019.08.07"]
[Round "6.36"]
[White "Silva, Pedro Gil Ferreira D"]
[Black "Droin, Augustin"]
[Result "0-1"]
[ECO "A06"]
[WhiteElo "2049"]
[BlackElo "2172"]
[Annotator "NA"]
[PlyCount "72"]
[EventDate "2019.08.02"]
[EventType "swiss"]
[EventCountry "SVK"]
[SourceTitle "playchess.com"]
[Source "ChessBase"]
[SourceQuality "1"]
[TimeControl "40/5400+30:1800+30"]

1. Nf3 {[%emt 0:00:00]} d5 {[%emt 0:00:00]} 2. b3 {[%emt 0:00:00]} f6 {[%emt 0:00:07]} 3. d4 {[%emt 0:00:28]} Nc6 {[%emt 0:00:24]} 4. Bb2 {[%emt 0:00:27]} Bg4 {[%emt 0:00:31]} 5. Nbd2 {[%emt 0:11:01]} Qd6 {[%emt 0:09:21]} 6. h3 {[%emt 0:12:28]} Bf5 {[%emt 0:04:37]} 7. Nh4 {[%emt 0:01:25]} Bd7 {[%emt 0:06:18]} 8. e3 {[%emt 0:10:06]} O-O-O {[%emt 0:02:38]} 9. c4 {[%emt 0:07:53]} e5 {[%emt 0:10:43]} 10. cxd5 {[%emt 0:06:57]} Qxd5 {[%emt 0:00:05]} 11. Bc4 {[%emt 0:08:46]} Qa5 {[%emt 0:00:41]} 12. d5 Nce7 {[%emt 0:00:18]} 13. e4 {[%emt 0:03:16]} f5 {[%emt 0:03:34]} 14. O-O {[%emt 0:06:05]} Nf6 {[%emt 0:00:46]} 15. Bxe5 {[%emt 0:02:05]} Nxe4 {[%emt 0:04:52]} 16. Nxe4 {[%emt 0:00:29]} fxe4 {[%emt 0:00:05]} 17. Qd4 {[%emt 0:00:53]} Rg8 {[%emt 0:06:21]} 18. b4 {[%emt 0:10:07]} Qb6 {[%emt 0:09:20]} 19. Qxb6 {[%emt 0:00:18]} axb6 {[%emt 0:00:03]} 20. d6 {[%emt 0:12:39]} cxd6 {[%emt 0:00:11]} 21. Bxd6 {[%emt 0:00:23]} Nc6 {[%emt 0:01:15]} 22. Bg3 {[%emt 0:00:45]} Bxb4 {[%emt 0:02:52]} 23. Bxg8 {[%emt 0:01:17]} Rxg8 {[%emt 0:00:04]} 24. f4 {[%emt 0:00:41]} Re8 {[%emt 0:09:51]} 25. Rfd1 {[%emt 0:02:49]} g6 {[%emt 0:02:03]} 26. Rac1 {[%emt 0:00:43]} Bc5+ {[%emt 0:00:48]} 27. Kh1 {[%emt 0:00:08]} Nb4 {[%emt 0:01:27]} 28. a3 {[%emt 0:01:10]} Nd3 {[%emt 0:00:14]} 29. Rc3 {[%emt 0:00:10]} Bb5 {[%emt 0:00:37]} 30. Rb1 {[%emt 0:00:35]} Bc6 {[%emt 0:00:37]} 31. Kh2 {[%emt 0:00:32]} Rf8 {[%emt 0:02:16]} 32. Rf1 {[%emt 0:00:41]} g5 {[%emt 0:00:17]} 33. Nf3 {[%emt 0:00:27]} gxf4 {[%emt 0:00:56]} 34. Bh4 {[%emt 0:00:30]} exf3 {[%emt 0:01:48]} 35. Rxd3 {[%emt 0:00:06]} fxg2 {[%emt 0:00:39]} 36. Rfd1 {[%emt 0:00:06]} f3 {[%emt 0:03:09]} 0-1

[Event "EYCC Open-U14 2019"]
[Site "Bratislava"]
[Date "2019.08.07"]
[Round "6.37"]
[White "Nareks, Matic"]
[Black "Creanga, Robert-Ionut"]
[Result "1/2-1/2"]
[ECO "B07"]
[WhiteElo "1937"]
[BlackElo "2024"]
[Annotator "NA"]
[PlyCount "63"]
[EventDate "2019.08.02"]
[EventType "swiss"]
[EventCountry "SVK"]
[SourceTitle "playchess.com"]
[Source "ChessBase"]
[SourceQuality "1"]
[TimeControl "40/5400+30:1800+30"]

1. e4 {[%emt 0:00:00]} d6 {[%emt 0:00:00]} 2. d4 {[%emt 0:00:18]} Nf6 {[%emt 0:00:00]} 3. Nc3 {[%emt 0:00:10]} g6 {[%emt 0:00:00]} 4. f3 {[%emt 0:00:18]} Bg7 {[%emt 0:00:03]} 5. Be3 {[%emt 0:00:23]} c6 {[%emt 0:00:12]} 6. Qd2 {[%emt 0:00:31]} b5 {[%emt 0:00:13]} 7. g4 {[%emt 0:01:22]} Nbd7 {[%emt 0:00:27]} 8. g5 {[%emt 0:08:12]} Nh5 {[%emt 0:10:11]} 9. Nge2 {[%emt 0:10:52]} a6 {[%emt 0:24:05]} 10. f4 {[%emt 0:12:30]} Nb6 {[%emt 0:06:30]} 11. b3 {[%emt 0:04:18]} Bb7 {[%emt 0:09:32]} 12. Bg2 {[%emt 0:07:34]} Qc7 {[%emt 0:03:20]} 13. O-O {[%emt 0:11:38]} e5 {[%emt 0:08:17]} 14. dxe5 {[%emt 0:06:44]} dxe5 {[%emt 0:00:57]} 15. f5 {[%emt 0:00:26]} Bf8 {[%emt 0:02:21]} 16. Rad1 {[%emt 0:04:53]} Be7 {[%emt 0:03:39]} 17. Qe1 {[%emt 0:02:39]} Nd7 {[%emt 0:04:01]} 18. Qf2 {[%emt 0:01:34]} O-O-O {[%emt 0:06:50]} 19. a4 {[%emt 0:02:31]} h6 {[%emt 0:05:40]} 20. axb5 {[%emt 0:02:26]} axb5 {[%emt 0:00:22]} 21. f6 {[%emt 0:01:04]} Bd6 {[%emt 0:03:45]} 22. Bh3 {[%emt 0:01:03]} hxg5 {[%emt 0:01:29]} 23. Bb6 {[%emt 0:00:27]} Qb8 {[%emt 0:00:09]} 24. Ba7 {[%emt 0:01:18]} Qc7 {[%emt 0:00:26]} 25. Bb6 {[%emt 0:00:45]} Qb8 {[%emt 0:00:06]} 26. Qe3 {[%emt 0:07:17]} Ba8 {[%emt 0:02:09]} 27. Ba7 {[%emt 0:02:50]} Qc7 {[%emt 0:00:24]} 28. Bb6 {[%emt 0:00:29]} Qb8 {[%emt 0:00:08]} 29. Bxd8 {[%emt 0:02:36]} Rxd8 {[%emt 0:00:18]} 30. Kh1 {[%emt 0:00:50]} Kc7 {[%emt 0:01:09]} 31. Rxd6 {[%emt 0:00:56]} Kxd6 {[%emt 0:00:22]} 32. Qxg5 {[%emt 0:01:38]} 1/2-1/2